[Event "Veteran-SM 65+ 2025"]
[Site "Uppsala, Sweden"]
[Date "2025.06.28"]
[Round "1.1"]
[White "Johansson, Jan"]
[Black "Olsson, Torgny"]
[Result "1-0"]
[TimeControl "90 min for 40 move + 30 min with an increment of 30 sec starting move 1"]
[WhiteTitle "IM"]
[WhiteFideId "1700103"]
[BlackFideId "1717340"]
[WhiteElo "2258"]
[BlackElo "1907"]

1. d4 {[%clk 01:30:57]} {[%emt 00:00:02]} Nf6 {[%clk 01:30:20]} {[%emt
00:00:40]} 2. Nf3 {[%clk 01:31:19]} {[%emt 00:00:07]} d5 {[%clk 01:29:52]}
{[%emt 00:01:03]} 3. c4 {[%clk 01:31:38]} {[%emt 00:00:07]} c6 {[%clk
01:29:34]} {[%emt 00:00:49]} 4. Nc3 {[%clk 01:31:11]} {[%emt 00:00:56]} e6
{[%clk 01:28:11]} {[%emt 00:01:54]} 5. Bg5 {[%clk 01:29:45]} {[%emt 00:01:55]}
Be7 {[%clk 01:25:48]} {[%emt 00:02:59]} 6. e3 {[%clk 01:28:49]} {[%emt
00:01:26]} Nbd7 {[%clk 01:21:28]} {[%emt 00:05:02]} 7. Qc2 {[%clk 01:26:25]}
{[%emt 00:02:50]} h6 {[%clk 01:18:08]} {[%emt 00:03:37]} 8. Bh4 {[%clk
01:26:48]} {[%emt 00:00:07]} b6 {[%clk 01:17:53]} {[%emt 00:00:49]} 9. cxd5
{[%clk 01:20:42]} {[%emt 00:06:31]} cxd5 {[%clk 01:10:52]} {[%emt 00:07:46]} 10.
Bb5 {[%clk 01:12:33]} {[%emt 00:08:31]} a6 {[%clk 01:01:30]} {[%emt 00:09:58]}
11. Bd3 {[%clk 01:00:28]} {[%emt 00:12:23]} O-O {[%clk 00:57:29]} {[%emt
00:04:33]} 12. O-O {[%clk 01:00:14]} {[%emt 00:00:42]} Bb7 {[%clk 00:57:28]}
{[%emt 00:00:45]} 13. Rac1 {[%clk 01:00:19]} {[%emt 00:00:13]} Rc8 {[%clk
00:55:18]} {[%emt 00:02:38]} 14. a4 {[%clk 00:38:53]} {[%emt 00:22:02]} Re8
{[%clk 00:50:26]} {[%emt 00:05:15]} 15. Qe2 {[%clk 00:38:00]} {[%emt 00:01:49]}
Ra8 {[%clk 00:47:06]} {[%emt 00:03:26]} 16. Na2 {[%clk 00:36:57]} {[%emt
00:01:32]} Bd6 {[%clk 00:37:55]} {[%emt 00:09:43]} 17. Rc2 {[%clk 00:33:40]}
{[%emt 00:03:46]} Rc8 {[%clk 00:31:36]} {[%emt 00:06:51]} 18. Rfc1 {[%clk
00:30:41]} {[%emt 00:03:27]} Rxc2 {[%clk 00:30:08]} {[%emt 00:01:57]} 19. Rxc2
{[%clk 00:30:59]} {[%emt 00:00:12]} Qa8 {[%clk 00:27:18]} {[%emt 00:03:21]} 20.
Bg3 {[%clk 00:30:52]} {[%emt 00:00:37]} Bxg3 {[%clk 00:26:08]} {[%emt
00:01:40]} 21. hxg3 {[%clk 00:31:14]} {[%emt 00:00:08]} Rc8 {[%clk 00:26:16]}
{[%emt 00:00:24]} 22. Nb4 {[%clk 00:29:00]} {[%emt 00:02:42]} Rxc2 {[%clk
00:22:03]} {[%emt 00:04:43]} 23. Qxc2 {[%clk 00:29:22]} {[%emt 00:00:08]} a5
{[%clk 00:21:50]} {[%emt 00:00:43]} 24. Na2 {[%clk 00:29:46]} {[%emt 00:00:06]}
Ba6 {[%clk 00:19:31]} {[%emt 00:02:49]} 25. Ne1 {[%clk 00:27:23]} {[%emt
00:02:52]} Bxd3 {[%clk 00:19:23]} {[%emt 00:00:40]} 26. Nxd3 {[%clk 00:27:46]}
{[%emt 00:00:05]} Qb8 {[%clk 00:18:59]} {[%emt 00:00:54]} 27. Qc6 {[%clk
00:27:35]} {[%emt 00:00:40]} Qd8 {[%clk 00:17:21]} {[%emt 00:02:09]} 28. Nc3
{[%clk 00:27:20]} {[%emt 00:00:45]} Qb8 {[%clk 00:16:34]} {[%emt 00:01:16]} 29.
Nb5 {[%clk 00:27:22]} {[%emt 00:00:29]} Qd8 {[%clk 00:13:28]} {[%emt 00:03:37]}
30. Na7 {[%clk 00:24:59]} {[%emt 00:02:53]} Nb8 {[%clk 00:09:19]} {[%emt
00:04:38]} 31. Qb7 {[%clk 00:24:50]} {[%emt 00:00:38]} Nfd7 {[%clk 00:08:43]}
{[%emt 00:01:08]} 32. Nc8 {[%clk 00:24:25]} {[%emt 00:00:55]} Kh7 {[%clk
00:06:37]} {[%emt 00:02:35]} 33. b3 {[%clk 00:19:30]} {[%emt 00:05:25]} Kg8
{[%clk 00:04:48]} {[%emt 00:02:21]} 34. Ne5 {[%clk 00:16:42]} {[%emt 00:03:19]}
Kf8 {[%clk 00:02:41]} {[%emt 00:02:37]} 35. Nxb6 {[%clk 00:16:15]} {[%emt
00:00:55]} Nxe5 {[%clk 00:01:18]} {[%emt 00:01:53]} 36. dxe5 {[%clk 00:16:37]}
{[%emt 00:00:09]} g6 {[%clk 00:01:23]} {[%emt 00:00:28]} 37. Qxb8 {[%clk
00:16:58]} {[%emt 00:00:10]} 1-0

[Event "Veteran-SM 65+ 2025"]
[Site "Uppsala, Sweden"]
[Date "2025.06.28"]
[Round "1.2"]
[White "Andersson, Sven-Olof"]
[Black "Marttala, Thomas"]
[Result "0-1"]
[TimeControl "90 min for 40 move + 30 min with an increment of 30 sec starting move 1"]
[WhiteFideId "1706926"]
[BlackFideId "1701118"]
[WhiteElo "1895"]
[BlackElo "2123"]

1. d4 {[%clk 01:30:58]} {[%emt 00:00:01]} Nf6 {[%clk 01:30:16]} {[%emt
00:00:44]} 2. Nf3 {[%clk 01:31:12]} {[%emt 00:00:21]} d5 {[%clk 01:29:18]}
{[%emt 00:01:24]} 3. g3 {[%clk 01:31:13]} {[%emt 00:00:29]} g6 {[%clk
01:29:20]} {[%emt 00:00:27]} 4. Bg2 {[%clk 01:31:24]} {[%emt 00:00:20]} Bg7
{[%clk 01:29:38]} {[%emt 00:00:11]} 5. O-O {[%clk 01:31:35]} {[%emt 00:00:25]}
O-O {[%clk 01:30:01]} {[%emt 00:00:01]} 6. b3 {[%clk 01:31:34]} {[%emt
00:00:32]} c5 {[%clk 01:30:03]} {[%emt 00:00:27]} 7. e3 {[%clk 01:31:55]}
{[%emt 00:00:12]} Nc6 {[%clk 01:29:47]} {[%emt 00:00:47]} 8. Bb2 {[%clk
01:31:48]} {[%emt 00:00:41]} cxd4 {[%clk 01:29:41]} {[%emt 00:00:28]} 9. exd4
{[%clk 01:30:27]} {[%emt 00:02:10]} Bf5 {[%clk 01:28:27]} {[%emt 00:01:24]} 10.
Nh4 {[%clk 01:13:15]} {[%emt 00:17:52]} Bg4 {[%clk 01:27:11]} {[%emt 00:01:36]}
11. Bf3 {[%clk 01:09:15]} {[%emt 00:04:59]} Bxf3 {[%clk 01:27:03]} {[%emt
00:00:12]} 12. Nxf3 {[%clk 01:07:15]} {[%emt 00:02:48]} Rc8 {[%clk 01:26:02]}
{[%emt 00:01:17]} 13. Ne5 {[%clk 00:59:03]} {[%emt 00:08:48]} Ne4 {[%clk
01:18:49]} {[%emt 00:07:35]} 14. f3 {[%clk 00:54:17]} {[%emt 00:05:12]} Nd6
{[%clk 01:18:01]} {[%emt 00:01:21]} 15. Nd2 {[%clk 00:43:46]} {[%emt 00:10:57]}
Nf5 {[%clk 01:17:47]} {[%emt 00:00:44]} 16. Nxc6 {[%clk 00:40:42]} {[%emt
00:03:48]} Rxc6 {[%clk 01:17:57]} {[%emt 00:00:07]} 17. c3 {[%clk 00:39:57]}
{[%emt 00:01:27]} Ne3 {[%clk 01:17:15]} {[%emt 00:01:01]} 18. Qe2 {[%clk
00:40:03]} {[%emt 00:00:27]} Nxf1 {[%clk 01:16:41]} {[%emt 00:01:00]} 19. Rxf1
{[%clk 00:39:16]} {[%emt 00:01:16]} Qc7 {[%clk 01:12:35]} {[%emt 00:04:44]} 20.
f4 {[%clk 00:36:49]} {[%emt 00:02:50]} Rxc3 {[%clk 01:11:16]} {[%emt 00:01:48]}
21. Bxc3 {[%clk 00:36:49]} {[%emt 00:00:32]} Qxc3 {[%clk 01:11:38]} {[%emt
00:00:07]} 22. Nf3 {[%clk 00:37:04]} {[%emt 00:00:15]} Bxd4+ {[%clk 01:11:39]}
{[%emt 00:00:30]} 23. Kg2 {[%clk 00:37:00]} {[%emt 00:00:32]} Bf6 {[%clk
01:11:32]} {[%emt 00:00:37]} 24. Rd1 {[%clk 00:35:33]} {[%emt 00:01:58]} Rd8
{[%clk 01:10:16]} {[%emt 00:02:27]} 25. Rd3 {[%clk 00:35:31]} {[%emt 00:00:02]}
Qc5 {[%clk 01:09:51]} {[%emt 00:00:48]} 26. g4 {[%clk 00:29:53]} {[%emt
00:06:03]} e6 {[%clk 01:09:17]} {[%emt 00:01:19]} 27. g5 {[%clk 00:29:14]}
{[%emt 00:00:55]} Bg7 {[%clk 01:09:10]} {[%emt 00:00:36]} 28. h4 {[%clk
00:28:19]} {[%emt 00:01:26]} Rc8 {[%clk 01:07:43]} {[%emt 00:01:57]} 29. Rd2
{[%clk 00:26:14]} {[%emt 00:02:35]} a6 {[%clk 01:05:51]} {[%emt 00:02:23]} 30.
h5 {[%clk 00:22:40]} {[%emt 00:04:12]} gxh5 {[%clk 01:05:33]} {[%emt 00:00:42]}
31. Ne1 {[%clk 00:22:38]} {[%emt 00:00:30]} Qb4 {[%clk 01:04:20]} {[%emt
00:01:40]} 32. Nd3 {[%clk 00:21:57]} {[%emt 00:01:12]} Qe4+ {[%clk 01:00:33]}
{[%emt 00:04:17]} 33. Qxe4 {[%clk 00:15:24]} {[%emt 00:07:04]} dxe4 {[%clk
01:00:42]} {[%emt 00:00:21]} 34. Ne1 {[%clk 00:15:11]} {[%emt 00:00:42]} Bc3
{[%clk 00:59:47]} {[%emt 00:01:25]} 35. Re2 {[%clk 00:13:35]} {[%emt 00:02:07]}
Bxe1 {[%clk 00:59:42]} {[%emt 00:00:35]} 36. Rxe1 {[%clk 00:13:59]} {[%emt
00:00:06]} Rc2+ {[%clk 00:59:47]} {[%emt 00:00:24]} 37. Kg3 {[%clk 00:14:01]}
{[%emt 00:00:29]} Kg7 {[%clk 00:59:50]} {[%emt 00:00:27]} 38. Rxe4 {[%clk
00:13:23]} {[%emt 00:01:08]} Rxa2 {[%clk 01:00:08]} {[%emt 00:00:12]} 39. Rb4
{[%clk 00:10:46]} {[%emt 00:03:09]} b5 {[%clk 01:00:27]} {[%emt 00:00:09]} 40.
Rd4 {[%clk 00:11:07]} {[%emt 00:00:09]} Ra3 {[%clk 01:00:08]} {[%emt 00:00:49]}
41. Rd3 {[%clk 00:07:49]} {[%emt 00:03:49]} a5 {[%clk 01:00:08]} {[%emt
00:00:29]} 42. Kh4 {[%clk 00:08:07]} {[%emt 00:00:12]} a4 {[%clk 01:00:23]}
{[%emt 00:00:15]} 43. Kxh5 {[%clk 00:07:25]} {[%emt 00:01:11]} Rxb3 {[%clk
01:00:43]} {[%emt 00:00:11]} 0-1

[Event "Veteran-SM 65+ 2025"]
[Site "Uppsala, Sweden"]
[Date "2025.06.28"]
[Round "1.3"]
[White "Malmdin, Nils-Ake"]
[Black "Lundquist, Leif"]
[Result "1-0"]
[TimeControl "90 min for 40 move + 30 min with an increment of 30 sec starting move 1"]
[WhiteTitle "FM"]
[WhiteFideId "1701584"]
[BlackFideId "1710990"]
[WhiteElo "2103"]
[BlackElo "1890"]

1. e4 {[%clk 01:30:45]} {[%emt 00:00:14]} c5 {[%clk 01:30:54]} {[%emt
00:00:08]} 2. Nc3 {[%clk 01:29:29]} {[%emt 00:01:45]} Nc6 {[%clk 01:31:16]}
{[%emt 00:00:08]} 3. f4 {[%clk 01:29:38]} {[%emt 00:00:19]} g6 {[%clk
01:31:21]} {[%emt 00:00:26]} 4. Nf3 {[%clk 01:29:54]} {[%emt 00:00:12]} Bg7
{[%clk 01:30:50]} {[%emt 00:01:03]} 5. Bb5 {[%clk 01:27:30]} {[%emt 00:02:56]}
Nd4 {[%clk 01:29:57]} {[%emt 00:01:22]} 6. a4 {[%clk 01:25:15]} {[%emt
00:02:50]} a6 {[%clk 01:25:29]} {[%emt 00:04:54]} 7. Bc4 {[%clk 01:21:44]}
{[%emt 00:04:05]} e6 {[%clk 01:23:03]} {[%emt 00:02:51]} 8. O-O {[%clk
01:10:21]} {[%emt 00:11:54]} Ne7 {[%clk 01:20:51]} {[%emt 00:02:40]} 9. d3
{[%clk 01:08:02]} {[%emt 00:02:50]} O-O {[%clk 01:17:14]} {[%emt 00:04:06]} 10.
Kh1 {[%clk 00:59:25]} {[%emt 00:09:06]} d5 {[%clk 01:06:50]} {[%emt 00:10:54]}
11. Ba2 {[%clk 00:58:52]} {[%emt 00:01:07]} b5 {[%clk 00:44:44]} {[%emt
00:22:37]} 12. f5 {[%clk 00:46:08]} {[%emt 00:13:10]} b4 {[%clk 00:38:14]}
{[%emt 00:07:01]} 13. Nxd4 {[%clk 00:45:09]} {[%emt 00:01:28]} Bxd4 {[%clk
00:29:54]} {[%emt 00:08:51]} 14. Ne2 {[%clk 00:44:05]} {[%emt 00:01:32]} dxe4
{[%clk 00:26:18]} {[%emt 00:04:08]} 15. dxe4 {[%clk 00:41:32]} {[%emt
00:03:03]} exf5 {[%clk 00:16:53]} {[%emt 00:09:55]} 16. Bg5 {[%clk 00:28:10]}
{[%emt 00:13:51]} Qc7 {[%clk 00:11:20]} {[%emt 00:06:04]} 17. Nxd4 {[%clk
00:23:12]} {[%emt 00:05:27]} cxd4 {[%clk 00:11:36]} {[%emt 00:00:15]} 18. Qxd4
{[%clk 00:23:12]} {[%emt 00:00:28]} Nc6 {[%clk 00:10:25]} {[%emt 00:01:44]} 19.
Qf6 {[%clk 00:22:44]} {[%emt 00:00:56]} Nd8 {[%clk 00:06:39]} {[%emt 00:04:16]}
20. Bh6 {[%clk 00:20:44]} {[%emt 00:02:29]} Ne6 {[%clk 00:06:56]} {[%emt
00:00:15]} 21. exf5 {[%clk 00:20:31]} {[%emt 00:00:42]} Qd8 {[%clk 00:03:31]}
{[%emt 00:03:57]} 22. fxe6 {[%clk 00:19:55]} {[%emt 00:01:05]} Qxf6 {[%clk
00:03:47]} {[%emt 00:00:14]} 23. Rxf6 {[%clk 00:20:14]} {[%emt 00:00:10]} Bxe6
{[%clk 00:02:11]} {[%emt 00:01:00]} 24. Bxe6 {[%clk 00:20:37]} {[%emt
00:01:14]} 1-0

[Event "Veteran-SM 65+ 2025"]
[Site "Uppsala, Sweden"]
[Date "2025.06.28"]
[Round "1.4"]
[White "Salholm, Soren"]
[Black "Sigeman, Johan"]
[Result "0-1"]
[TimeControl "90 min for 40 move + 30 min with an increment of 30 sec starting move 1"]
[WhiteFideId "1722824"]
[BlackFideId "1705601"]
[WhiteElo "1887"]
[BlackElo "2012"]

1. d4 {[%clk 01:30:45]} {[%emt 00:00:14]} Nf6 {[%clk 01:30:38]} {[%emt
00:00:23]} 2. Nf3 {[%clk 01:31:01]} {[%emt 00:00:15]} e6 {[%clk 01:30:51]}
{[%emt 00:00:17]} 3. g3 {[%clk 01:31:22]} {[%emt 00:00:09]} d5 {[%clk
01:30:36]} {[%emt 00:00:44]} 4. Bg2 {[%clk 01:30:49]} {[%emt 00:01:03]} Be7
{[%clk 01:30:44]} {[%emt 00:00:22]} 5. O-O {[%clk 01:29:50]} {[%emt 00:01:31]}
O-O {[%clk 01:30:54]} {[%emt 00:00:18]} 6. Ne5 {[%clk 01:28:56]} {[%emt
00:01:23]} Nbd7 {[%clk 01:27:19]} {[%emt 00:04:05]} 7. f4 {[%clk 01:26:56]}
{[%emt 00:02:33]} c5 {[%clk 01:21:17]} {[%emt 00:06:30]} 8. c3 {[%clk
01:27:02]} {[%emt 00:00:23]} Qb6 {[%clk 01:17:51]} {[%emt 00:03:59]} 9. e3
{[%clk 01:23:27]} {[%emt 00:04:02]} Qc7 {[%clk 01:09:42]} {[%emt 00:08:39]} 10.
a4 {[%clk 01:19:45]} {[%emt 00:04:16]} b6 {[%clk 01:08:31]} {[%emt 00:01:38]}
11. Nd2 {[%clk 01:09:23]} {[%emt 00:10:52]} Bb7 {[%clk 01:03:41]} {[%emt
00:05:19]} 12. Nxd7 {[%clk 01:01:56]} {[%emt 00:07:57]} Qxd7 {[%clk 01:00:46]}
{[%emt 00:03:27]} 13. a5 {[%clk 00:53:54]} {[%emt 00:08:32]} b5 {[%clk
00:50:54]} {[%emt 00:10:22]} 14. g4 {[%clk 00:45:23]} {[%emt 00:09:00]} cxd4
{[%clk 00:42:25]} {[%emt 00:09:07]} 15. exd4 {[%clk 00:43:01]} {[%emt
00:02:44]} b4 {[%clk 00:40:35]} {[%emt 00:02:20]} 16. g5 {[%clk 00:29:24]}
{[%emt 00:14:07]} Ne4 {[%clk 00:38:49]} {[%emt 00:02:15]} 17. Nxe4 {[%clk
00:28:17]} {[%emt 00:01:38]} dxe4 {[%clk 00:39:16]} {[%emt 00:00:04]} 18. Re1
{[%clk 00:21:52]} {[%emt 00:06:54]} Rac8 {[%clk 00:36:38]} {[%emt 00:03:08]} 19.
Bd2 {[%clk 00:18:40]} {[%emt 00:03:42]} f5 {[%clk 00:31:44]} {[%emt 00:05:24]}
20. Re3 {[%clk 00:10:23]} {[%emt 00:08:46]} Rfd8 {[%clk 00:23:54]} {[%emt
00:08:21]} 21. Rh3 {[%clk 00:08:50]} {[%emt 00:02:03]} g6 {[%clk 00:23:07]}
{[%emt 00:01:17]} 22. Qe1 {[%clk 00:07:42]} {[%emt 00:01:39]} bxc3 {[%clk
00:17:02]} {[%emt 00:06:34]} 23. bxc3 {[%clk 00:07:57]} {[%emt 00:00:15]} Ba6
{[%clk 00:16:44]} {[%emt 00:00:48]} 24. Rg3 {[%clk 00:03:29]} {[%emt 00:04:58]}
Rb8 {[%clk 00:08:16]} {[%emt 00:08:58]} 25. h4 {[%clk 00:03:30]} {[%emt
00:00:28]} Rb2 {[%clk 00:07:26]} {[%emt 00:01:21]} 26. h5 {[%clk 00:03:18]}
{[%emt 00:00:42]} Bf8 {[%clk 00:05:19]} {[%emt 00:02:38]} 27. Rc1 {[%clk
00:01:41]} {[%emt 00:02:07]} Bc4 {[%clk 00:04:42]} {[%emt 00:01:08]} 28. hxg6
{[%clk 00:01:37]} {[%emt 00:00:32]} hxg6 {[%clk 00:05:10]} {[%emt 00:00:01]} 29.
Rh3 {[%clk 00:01:27]} {[%emt 00:00:41]} Bg7 {[%clk 00:05:17]} {[%emt 00:00:23]}
30. Kh2 {[%clk 00:01:11]} {[%emt 00:00:47]} Qc7 {[%clk 00:04:39]} {[%emt
00:01:07]} 31. Be3 {[%clk 00:01:20]} {[%emt 00:00:21]} Re2 {[%clk 00:03:20]}
{[%emt 00:01:49]} 32. Qg1 {[%clk 00:01:25]} {[%emt 00:00:25]} Rb8 {[%clk
00:03:22]} {[%emt 00:00:28]} 33. Kh1 {[%clk 00:01:15]} {[%emt 00:00:41]} Rbb2
{[%clk 00:02:16]} {[%emt 00:01:36]} 34. Bf1 {[%clk 00:01:13]} {[%emt 00:00:31]}
Rec2 {[%clk 00:02:22]} {[%emt 00:00:25]} 35. d5 {[%clk 00:00:46]} {[%emt
00:00:56]} Bxd5 {[%clk 00:02:33]} {[%emt 00:00:19]} 36. Rxc2 {[%clk 00:00:54]}
{[%emt 00:00:21]} Rxc2 {[%clk 00:03:01]} {[%emt 00:00:03]} 37. Bd4 {[%clk
00:01:14]} {[%emt 00:00:10]} e3+ {[%clk 00:03:21]} {[%emt 00:00:11]} 0-1

[Event "Veteran-SM 65+ 2025"]
[Site "Uppsala, Sweden"]
[Date "2025.06.28"]
[Round "1.6"]
[White "Nylund, Seved"]
[Black "Carlsson, Ingvar"]
[Result "1/2-1/2"]
[TimeControl "90 min for 40 move + 30 min with an increment of 30 sec starting move 1"]
[WhiteFideId "1717260"]
[BlackFideId "1702670"]
[WhiteElo "1879"]
[BlackElo "1987"]

1. e4 {[%clk 01:30:52]} {[%emt 00:00:07]} c5 {[%clk 01:30:23]} {[%emt
00:00:38]} 2. a3 {[%clk 01:31:02]} {[%emt 00:00:20]} e6 {[%clk 01:26:32]}
{[%emt 00:04:21]} 3. b4 {[%clk 01:30:46]} {[%emt 00:00:47]} cxb4 {[%clk
01:22:09]} {[%emt 00:04:55]} 4. axb4 {[%clk 01:30:56]} {[%emt 00:00:19]} Bxb4
{[%clk 01:21:49]} {[%emt 00:00:48]} 5. c3 {[%clk 01:30:33]} {[%emt 00:00:55]}
Be7 {[%clk 01:21:43]} {[%emt 00:00:35]} 6. d4 {[%clk 01:30:44]} {[%emt
00:00:19]} d5 {[%clk 01:21:18]} {[%emt 00:00:56]} 7. e5 {[%clk 01:31:03]}
{[%emt 00:00:11]} Nc6 {[%clk 01:20:54]} {[%emt 00:00:54]} 8. Qg4 {[%clk
01:29:02]} {[%emt 00:02:30]} g6 {[%clk 01:19:55]} {[%emt 00:01:31]} 9. h4
{[%clk 01:27:58]} {[%emt 00:01:34]} h5 {[%clk 01:19:57]} {[%emt 00:00:26]} 10.
Qg3 {[%clk 01:27:57]} {[%emt 00:00:30]} Nh6 {[%clk 01:19:47]} {[%emt 00:00:42]}
11. Bd3 {[%clk 01:26:35]} {[%emt 00:01:51]} Bd7 {[%clk 01:09:27]} {[%emt
00:10:50]} 12. Ne2 {[%clk 01:24:08]} {[%emt 00:02:56]} Na5 {[%clk 01:04:00]}
{[%emt 00:05:58]} 13. Nd2 {[%clk 01:21:30]} {[%emt 00:03:07]} Rc8 {[%clk
00:51:16]} {[%emt 00:13:17]} 14. Ba3 {[%clk 01:17:58]} {[%emt 00:04:00]} b6
{[%clk 00:47:40]} {[%emt 00:04:07]} 15. Bxe7 {[%clk 01:15:24]} {[%emt
00:03:03]} Qxe7 {[%clk 00:47:53]} {[%emt 00:00:19]} 16. O-O {[%clk 01:12:33]}
{[%emt 00:03:22]} Rc7 {[%clk 00:40:08]} {[%emt 00:08:14]} 17. f3 {[%clk
01:01:01]} {[%emt 00:12:01]} Bc8 {[%clk 00:33:35]} {[%emt 00:07:04]} 18. Rfb1
{[%clk 00:58:33]} {[%emt 00:02:59]} Rg8 {[%clk 00:24:02]} {[%emt 00:10:02]} 19.
Qg5 {[%clk 00:56:47]} {[%emt 00:02:13]} Qxg5 {[%clk 00:17:59]} {[%emt
00:06:35]} 20. hxg5 {[%clk 00:47:25]} {[%emt 00:09:51]} Nf5 {[%clk 00:18:19]}
{[%emt 00:00:12]} 21. Bxf5 {[%clk 00:44:20]} {[%emt 00:03:33]} gxf5 {[%clk
00:14:23]} {[%emt 00:04:27]} 22. f4 {[%clk 00:42:41]} {[%emt 00:02:08]} Ke7
{[%clk 00:14:32]} {[%emt 00:00:22]} 23. Ra3 {[%clk 00:37:22]} {[%emt 00:05:47]}
Ba6 {[%clk 00:14:22]} {[%emt 00:00:41]} 24. Ng3 {[%clk 00:36:25]} {[%emt
00:01:27]} Rh8 {[%clk 00:12:50]} {[%emt 00:02:03]} 25. Kf2 {[%clk 00:30:44]}
{[%emt 00:06:11]} h4 {[%clk 00:12:23]} {[%emt 00:00:55]} 26. Ngf1 {[%clk
00:26:59]} {[%emt 00:04:16]} h3 {[%clk 00:07:03]} {[%emt 00:05:51]} 27. gxh3
{[%clk 00:26:38]} {[%emt 00:00:50]} Rxh3 {[%clk 00:07:22]} {[%emt 00:00:11]} 28.
Nf3 {[%clk 00:26:17]} {[%emt 00:00:51]} Bd3 {[%clk 00:05:43]} {[%emt 00:02:10]}
29. Rba1 {[%clk 00:24:47]} {[%emt 00:01:59]} Bxf1 {[%clk 00:04:40]} {[%emt
00:01:34]} 30. Rxf1 {[%clk 00:25:04]} {[%emt 00:00:12]} Nc4 {[%clk 00:04:55]}
{[%emt 00:00:16]} 31. Raa1 {[%clk 00:23:52]} {[%emt 00:01:42]} Rxf3+ {[%clk
00:03:29]} {[%emt 00:01:57]} 32. Kxf3 {[%clk 00:24:14]} {[%emt 00:00:09]} Nd2+
{[%clk 00:03:55]} {[%emt 00:00:03]} 33. Ke2 {[%clk 00:24:23]} {[%emt 00:00:21]}
Nxf1 {[%clk 00:04:17]} {[%emt 00:00:08]} 34. Kxf1 {[%clk 00:24:39]} {[%emt
00:00:17]} a5 {[%clk 00:04:23]} {[%emt 00:00:22]} 35. Ra3 {[%clk 00:23:54]}
{[%emt 00:01:14]} Kd7 {[%clk 00:04:26]} {[%emt 00:00:36]} 36. Ke2 {[%clk
00:22:39]} {[%emt 00:01:38]} Kc6 {[%clk 00:04:21]} {[%emt 00:00:34]} 37. Kd3
{[%clk 00:22:09]} {[%emt 00:01:01]} Rc8 {[%clk 00:04:35]} {[%emt 00:00:17]} 38.
Ra1 {[%clk 00:21:56]} {[%emt 00:00:40]} Rh8 {[%clk 00:04:54]} {[%emt 00:00:14]}
39. Rg1 {[%clk 00:21:59]} {[%emt 00:00:25]} Rh3+ {[%clk 00:05:10]} {[%emt
00:00:15]} 40. Kc2 {[%clk 00:22:06]} {[%emt 00:00:24]} a4 {[%clk 00:01:49]}
{[%emt 00:03:53]} 41. g6 {[%clk 00:15:10]} {[%emt 00:07:24]} fxg6 {[%clk
00:02:03]} {[%emt 00:00:16]} 42. Rxg6 {[%clk 00:15:31]} {[%emt 00:00:08]} Rh2+
{[%clk 00:27:22]} {[%emt 00:05:12]} 43. Kb1 {[%clk 00:45:19]} {[%emt 00:00:40]}
Kd7 {[%clk 00:19:21]} {[%emt 00:08:32]} 44. Rg7+ {[%clk 00:45:24]} {[%emt
00:00:25]} Kc6 {[%clk 00:19:15]} {[%emt 00:00:37]} 45. Rg6 {[%clk 00:44:21]}
{[%emt 00:01:32]} Kd7 {[%clk 00:14:44]} {[%emt 00:05:01]} 1/2-1/2